fUSD/lending_fUSD_20251014
["ID","MTS","AMOUNT","RATE_DAILY","PERIOD"]
[391276421,1760464241769,-1206.96,0.00016438,2]
[391276423,1760464241789,-500.0,0.00016438,2]
[391276426,1760464241805,-980.97,0.00016438,2]
[391276429,1760464241821,-500.0,0.00016438,2]
[391276431,1760464241837,-1737.57,0.00016438,2]
[391276434,1760464241853,-792.81,0.00016438,2]
[391276437,1760464241869,-742.8,0.00016438,2]
[391276440,1760464241887,-745.36,0.00016438,2]
[391276442,1760464241903,-286.645094,0.00016438,2]
[391276445,1760464241921,-500.0,0.00016438,2]
[391276448,1760464241938,-500.0,0.00016438,2]
[391276451,1760464241955,-676.4,0.00016438,2]
[391276454,1760464241976,-500.0,0.00016438,2]
[391276456,1760464241993,-1622.12,0.00016438,2]
[391276459,1760464242011,-500.0,0.00016438,2]
[391276462,1760464242029,-500.0,0.00016438,2]
[391276465,1760464242045,-179.552198,0.00016438,2]
[391276468,1760464242063,-439.07875461,0.00016438,2]
[391276471,1760464242081,-179.552198,0.00016438,2]
[391276473,1760464242097,-500.0,0.00016438,2]
[391276476,1760464242115,-500.0,0.00016438,2]
[391276479,1760464242131,-915.23,0.00016438,2]
[391276482,1760464242148,-687.94,0.00016438,2]
[391276485,1760464242165,-179.552198,0.00016438,2]
[391276487,1760464242181,-179.552198,0.00016438,2]
[391276490,1760464242197,-621.4,0.00016438,2]
[391276493,1760464242216,-500.0,0.00016438,2]
[391276496,1760464242232,-1119.99,0.00016438,2]
[391276498,1760464242247,-500.0,0.00016438,2]
[391276501,1760464242263,-500.0,0.00016438,2]
[391276504,1760464242278,-733.16,0.00016438,2]
[391276506,1760464242295,-500.0,0.00016438,2]
[391276509,1760464242311,-500.0,0.00016438,2]
[391276512,1760464242327,-2739.56,0.00016438,2]
[391276515,1760464242341,-730.94,0.00016438,2]
[391276517,1760464242357,-500.0,0.00016438,2]
[391276520,1760464242374,-500.0,0.00016438,2]
[391276523,1760464242390,-500.0,0.00016438,2]
[391276525,1760464242405,-500.0,0.00016438,2]
[391276528,1760464242421,-761.71,0.00016438,2]
[391276531,1760464242436,-500.0,0.00016438,2]
[391276533,1760464242452,-500.0,0.00016438,2]
[391276535,1760464242469,-488.94824227,0.00016438,2]
[391276536,1760464242485,-500.0,0.00016438,2]
[391276537,1760464242501,-151.0,0.00016438,2]
[391276538,1760464242517,-640.03,0.00016438,2]
[391276539,1760464242532,-500.0,0.00016438,2]
[391276543,1760464242549,-508.3,0.00016438,2]
[391276545,1760464242564,-500.0,0.00016438,2]
[391276548,1760464242581,-500.0,0.00016438,2]
[391276551,1760464242596,-880.22,0.00016438,2]
[391276553,1760464242612,-500.0,0.00016438,2]
[391276556,1760464242627,-500.0,0.00016438,2]
[391276559,1760464242644,-977.06,0.00016438,2]
[391276562,1760464242661,-500.0,0.00016438,2]
[391276564,1760464242676,-500.0,0.00016438,2]
[391276567,1760464242692,-685.97,0.00016438,2]
[391276570,1760464242709,-1418.04,0.00016438,2]
[391276573,1760464242727,-282.85216,0.00016438,2]
[391276575,1760464242742,-151.0,0.00016438,2]
[391276578,1760464242757,-704.39,0.00016438,2]
[391276581,1760464242774,-1573.78,0.00016438,2]
[391276583,1760464242789,-500.0,0.00016438,2]
[391276586,1760464242805,-1773.99,0.00016438,2]
[391276590,1760464242821,-3479.86,0.00016438,2]
[391276593,1760464242837,-151.0,0.00016438,2]
[391276597,1760464242852,-1047.61,0.00016438,2]
[391276600,1760464242867,-529.01,0.00016438,2]
[391276602,1760464242882,-500.0,0.00016438,2]
[391276605,1760464242897,-151.0,0.00016438,2]
[391276608,1760464242913,-500.0,0.00016438,2]
[391276610,1760464242929,-151.0,0.00016438,2]
[391276613,1760464242945,-549.24,0.00016438,2]
[391276616,1760464242960,-500.0,0.00016438,2]
[391276618,1760464242978,-656.32,0.00016438,2]
[391276621,1760464242994,-847.77,0.00016438,2]
[391276624,1760464243011,-500.0,0.00016438,2]
[391276627,1760464243027,-151.0,0.00016438,2]
[391276629,1760464243043,-682.43,0.00016438,2]
[391276632,1760464243060,-716.61,0.00016438,2]
[391276635,1760464243077,-743.44,0.00016438,2]
[391276637,1760464243093,-500.0,0.00016438,2]
[391276639,1760464243103,-664.24,0.00016438,2]
[391276641,1760464243112,-500.0,0.00016438,2]
[391276643,1760464243121,-1511.76,0.00016438,2]
[391276645,1760464243131,-500.0,0.00016438,2]
[391276647,1760464243140,-852.32,0.00016438,2]
[391276649,1760464243150,-1924.94,0.00016438,2]
[391276651,1760464243159,-151.0,0.00016438,2]
[391276653,1760464243169,-1665.64,0.00016438,2]
[391276655,1760464243178,-1722.21,0.00016438,2]
[391276657,1760464243188,-465.27232684,0.00016438,2]
[391276659,1760464243197,-1418.65,0.00016438,2]
[391276662,1760464243209,-500.0,0.00016438,2]
[391276664,1760464243222,-1213.53,0.00016438,2]
[391276666,1760464243231,-1919.76,0.00016438,2]
[391276668,1760464243240,-500.0,0.00016438,2]
[391276671,1760464243250,-500.0,0.00016438,2]
[391276674,1760464243259,-1400.63,0.00016438,2]
[391276677,1760464243268,-756.47,0.00016438,2]
[391276679,1760464243277,-2117.63,0.00016438,2]
[391276681,1760464243287,-1513.98,0.00016438,2]
[391276683,1760464243296,-500.0,0.00016438,2]
[391276685,1760464243305,-1401.86,0.00016438,2]
[391276687,1760464243314,-500.0,0.00016438,2]
[391276744,1760464243849,-500.0,0.00016438,2]
[391276747,1760464243873,-784.58,0.00016438,2]
[391276753,1760464243917,-500.0,0.00016438,2]
[391276756,1760464243938,-500.0,0.00016438,2]
[391276759,1760464243967,-151.0,0.00016438,2]
[391276761,1760464243977,-711.83,0.00016438,2]
[391276763,1760464243993,-1197.56,0.00016438,2]
[391276765,1760464244002,-500.0,0.00016438,2]
[391276767,1760464244012,-1013.5,0.00016438,2]
[391276769,1760464244022,-500.0,0.00016438,2]
[391276771,1760464244032,-500.0,0.00016438,2]
[391276773,1760464244042,-907.39,0.00016438,2]
[391276775,1760464244052,-500.0,0.00016438,2]
[391276778,1760464244062,-743.24,0.00016438,2]
[391276780,1760464244074,-500.0,0.00016438,2]
[391276782,1760464244084,-2138.29,0.00016438,2]
[391276784,1760464244094,-605.59,0.00016438,2]
[391276786,1760464244104,-500.0,0.00016438,2]
[391276787,1760464244125,-1657.24,0.00016438,2]
[391276789,1760464244136,-500.0,0.00016438,2]
[391276791,1760464244145,-500.0,0.00016438,2]
[391276793,1760464244155,-706.07,0.00016438,2]
[391276795,1760464244164,-572.3,0.00016438,2]
[391276797,1760464244174,-3160.96,0.00016438,2]
[391276799,1760464244183,-285.41,0.00016438,2]
[391276801,1760464244192,-3421.78,0.00016438,2]
[391276803,1760464244201,-151.0,0.00016438,2]
[391276805,1760464244217,-500.0,0.00016438,2]
[391276807,1760464244227,-500.0,0.00016438,2]
[391276809,1760464244236,-698.82,0.00016438,2]
[391276811,1760464244245,-500.0,0.00016438,2]
[391276813,1760464244255,-2056.42,0.00016438,2]
[391276815,1760464244265,-1508.23,0.00016438,2]
[391276817,1760464244275,-500.0,0.00016438,2]
[391276819,1760464244285,-151.0,0.00016438,2]
[391276822,1760464244295,-2061.34,0.00016438,2]
[391276823,1760464244304,-500.0,0.00016438,2]
[391276825,1760464244314,-151.0,0.00016438,2]
[391276828,1760464244323,-151.0,0.00016438,2]
[391276830,1760464244333,-1096.44,0.00016438,2]
[391276832,1760464244343,-151.718286,0.00016438,2]
[391276834,1760464244352,-632.11,0.00016438,2]
[391276836,1760464244361,-500.0,0.00016438,2]
[391276838,1760464244371,-1010.28,0.00016438,2]
[391276839,1760464244380,-1479.88,0.00016438,2]
[391276841,1760464244389,-2053.11,0.00016438,2]
[391276842,1760464244399,-1287.76,0.00016438,2]
[391276843,1760464244409,-1798.51,0.00016438,2]
[391276844,1760464244418,-1662.51,0.00016438,2]
[391276845,1760464244427,-500.0,0.00016438,2]
[391276846,1760464244437,-760.53,0.00016438,2]
[391276847,1760464244446,-151.0,0.00016438,2]
[391276848,1760464244455,-530.63,0.00016438,2]
[391276850,1760464244469,-151.0,0.00016438,2]
[391276852,1760464244478,-500.0,0.00016438,2]
[391276853,1760464244487,-500.0,0.00016438,2]
[391276855,1760464244497,-824.37,0.00016438,2]
[391276857,1760464244506,-500.0,0.00016438,2]
[391276859,1760464244515,-500.0,0.00016438,2]
[391276861,1760464244525,-616.22,0.00016438,2]
[391276863,1760464244534,-929.21,0.00016438,2]
[391276865,1760464244544,-749.74,0.00016438,2]
[391276867,1760464244554,-500.0,0.00016438,2]
[391276869,1760464244564,-180.28264105,0.00016438,2]
[391276954,1760464245369,-868.14495538,0.00016438,2]
[391277082,1760464246590,-44.83240357,0.00016438,2]
[391277084,1760464246599,-208.64759943,0.00016438,2]
[391277087,1760464246614,-291.35240057,0.00016438,2]
[391277089,1760464246623,-500.0,0.00016438,2]
[391277091,1760464246632,-500.0,0.00016438,2]
[391277093,1760464246641,-500.0,0.00016438,2]
[391277095,1760464246650,-516.93,0.00016438,2]
[391277097,1760464246659,-1850.35,0.00016438,2]
[391277099,1760464246668,-501.84,0.00016438,2]
[391277101,1760464246677,-500.0,0.00016438,2]
[391277103,1760464246686,-640.16,0.00016438,2]
[391277105,1760464246696,-500.0,0.00016438,2]
[391277107,1760464246706,-500.0,0.00016438,2]
[391277109,1760464246717,-503.2,0.00016438,2]
[391277111,1760464246726,-1869.54,0.00016438,2]
[391277113,1760464246736,-422.9396535,0.00016438,2]
[391277115,1760464246746,-500.0,0.00016438,2]
[391277117,1760464246755,-222.099922,0.00016438,2]
[391277119,1760464246766,-500.0,0.00016438,2]
[391277121,1760464246778,-500.0,0.00016438,2]
[391277123,1760464246788,-500.0,0.00016438,2]
[391277125,1760464246798,-2155.53,0.00016438,2]
[391277127,1760464246807,-500.0,0.00016438,2]
[391277129,1760464246817,-500.0,0.00016438,2]
[391277131,1760464246826,-500.0,0.00016438,2]
[391277133,1760464246836,-1165.29,0.00016438,2]
[391277135,1760464246846,-1629.55,0.00016438,2]
[391277137,1760464246856,-500.0,0.00016438,2]
[391277139,1760464246866,-500.0,0.00016438,2]
[391277141,1760464246875,-151.0,0.00016438,2]
[391277144,1760464246884,-500.0,0.00016438,2]
[391277146,1760464246894,-500.0,0.00016438,2]
[391277148,1760464246904,-1090.75,0.00016438,2]
[391277150,1760464246913,-533.51808832,0.00016438,2]
[391277152,1760464246923,-151.0,0.00016438,2]
[391277154,1760464246934,-572.71,0.00016438,2]
[391277156,1760464246945,-151.0,0.00016438,2]
[391277158,1760464246954,-273.077464,0.00016438,2]
[391277160,1760464246967,-151.0,0.00016438,2]
[391277162,1760464246976,-500.0,0.00016438,2]
[391277164,1760464246985,-500.0,0.00016438,2]
[391277166,1760464246995,-301.67237059,0.00016438,2]
[391277168,1760464247005,-219.03467,0.00016438,2]
[391277170,1760464247015,-709.21,0.00016438,2]
[391277172,1760464247024,-1090.31,0.00016438,2]
[391277174,1760464247034,-500.0,0.00016438,2]
[391277176,1760464247044,-575.45,0.00016438,2]
[391277178,1760464247053,-500.0,0.00016438,2]
[391277180,1760464247063,-500.0,0.00016438,2]
[391277182,1760464247072,-500.0,0.00016438,2]
[391277184,1760464247083,-746.02,0.00016438,2]
[391277186,1760464247092,-820.65,0.00016438,2]
[391277188,1760464247102,-545.11,0.00016438,2]
[391277190,1760464247111,-500.0,0.00016438,2]
[391277192,1760464247121,-500.0,0.00016438,2]
[391277194,1760464247131,-828.51,0.00016438,2]
[391277196,1760464247142,-2416.72,0.00016438,2]
[391277198,1760464247152,-2003.28,0.00016438,2]
[391277200,1760464247161,-2492.17,0.00016438,2]
[391277202,1760464247171,-907.1,0.00016438,2]
[391277204,1760464247181,-500.0,0.00016438,2]
[391277206,1760464247191,-500.0,0.00016438,2]
[391277208,1760464247200,-500.0,0.00016438,2]
[391277210,1760464247209,-500.0,0.00016438,2]
[391277212,1760464247220,-500.0,0.00016438,2]
[391277214,1760464247230,-774.41,0.00016438,2]
[391277216,1760464247240,-500.0,0.00016438,2]
[391277218,1760464247249,-1298.09,0.00016438,2]
[391277220,1760464247258,-587.2,0.00016438,2]
[391277223,1760464247268,-500.0,0.00016438,2]
[391277225,1760464247278,-4097.06,0.00016438,2]
[391277227,1760464247287,-1066.88,0.00016438,2]
[391277229,1760464247296,-500.0,0.00016438,2]
[391277231,1760464247306,-500.0,0.00016438,2]
[391277233,1760464247316,-500.0,0.00016438,2]
[391277235,1760464247325,-500.0,0.00016438,2]
[391277237,1760464247335,-500.0,0.00016438,2]
[391277239,1760464247344,-500.0,0.00016438,2]
[391277241,1760464247353,-500.0,0.00016438,2]
[391277243,1760464247362,-500.0,0.00016438,2]
[391277245,1760464247371,-500.0,0.00016438,2]
[391277247,1760464247381,-3323.59,0.00016438,2]
[391277249,1760464247390,-2609.11,0.00016438,2]
[391277251,1760464247399,-500.0,0.00016438,2]
[391277253,1760464247408,-500.0,0.00016438,2]
[391277255,1760464247418,-151.0,0.00016438,2]
[391277257,1760464247427,-151.0,0.00016438,2]
[391277259,1760464247437,-151.0,0.00016438,2]
[391277261,1760464247446,-696.48,0.00016438,2]
[391277263,1760464247455,-2003.29,0.00016438,2]
[391277265,1760464247465,-500.0,0.00016438,2]
[391277267,1760464247474,-500.0,0.00016438,2]
[391277269,1760464247483,-1692.56,0.00016438,2]
[391277271,1760464247492,-500.0,0.00016438,2]
[391277273,1760464247502,-1327.26,0.00016438,2]
[391277275,1760464247511,-1271.07,0.00016438,2]
[391277277,1760464247520,-1856.19,0.00016438,2]
[391277279,1760464247529,-151.0,0.00016438,2]
[391277281,1760464247538,-151.0,0.00016438,2]
[391277283,1760464247547,-1491.3,0.00016438,2]
[391277285,1760464247557,-500.0,0.00016438,2]
[391277287,1760464247566,-500.0,0.00016438,2]
[391277289,1760464247575,-649.07,0.00016438,2]
[391277291,1760464247584,-151.0,0.00016438,2]
[391277293,1760464247593,-500.0,0.00016438,2]
[391277295,1760464247602,-500.0,0.00016438,2]
[391277297,1760464247611,-3516.71,0.00016438,2]
[391277299,1760464247620,-201.220163,0.00016438,2]
[391277301,1760464247629,-2066.37,0.00016438,2]
[391277303,1760464247638,-2149.96,0.00016438,2]
[391277305,1760464247647,-500.0,0.00016438,2]
[391277307,1760464247657,-882.4,0.00016438,2]
[391277309,1760464247666,-500.0,0.00016438,2]
[391277311,1760464247675,-151.0,0.00016438,2]
[391277313,1760464247685,-151.0,0.00016438,2]
[391277315,1760464247694,-500.0,0.00016438,2]
[391277317,1760464247703,-151.0,0.00016438,2]
[391277319,1760464247714,-500.0,0.00016438,2]
[391277321,1760464247724,-500.0,0.00016438,2]
[391277322,1760464247733,-1056.29,0.00016438,2]
[391277323,1760464247742,-500.0,0.00016438,2]
[391277324,1760464247751,-151.0,0.00016438,2]
[391277325,1760464247760,-310.65086741,0.00016438,2]
[391277326,1760464247770,-2111.12,0.00016438,2]
[391277327,1760464247783,-621.9,0.00016438,2]
[391277328,1760464247792,-2626.02,0.00016438,2]
[391277330,1760464247802,-151.0,0.00016438,2]
[391277331,1760464247811,-640.25,0.00016438,2]
[391277333,1760464247820,-151.0,0.00016438,2]
[391277335,1760464247830,-500.0,0.00016438,2]
[391277337,1760464247840,-500.0,0.00016438,2]
[391277339,1760464247849,-740.67,0.00016438,2]
[391277341,1760464247858,-500.0,0.00016438,2]
[391277343,1760464247867,-500.0,0.00016438,2]
[391277345,1760464247877,-989.53,0.00016438,2]
[391277347,1760464247886,-2359.38,0.00016438,2]
[391277349,1760464247895,-1144.83,0.00016438,2]
[391277351,1760464247905,-500.0,0.00016438,2]
[391277353,1760464247914,-500.0,0.00016438,2]
[391277355,1760464247926,-610.43,0.00016438,2]
[391277357,1760464247936,-500.0,0.00016438,2]
[391277359,1760464247945,-500.0,0.00016438,2]
[391277361,1760464247955,-1886.61,0.00016438,2]
[391277363,1760464247968,-500.0,0.00016438,2]
[391277365,1760464247978,-500.0,0.00016438,2]
[391277367,1760464247987,-597.16,0.00016438,2]
[391277369,1760464247997,-671.14,0.00016438,2]
[391277371,1760464248007,-651.32,0.00016438,2]
[391277373,1760464248016,-993.46,0.00016438,2]
[391277375,1760464248026,-2114.89,0.00016438,2]
[391277377,1760464248035,-500.0,0.00016438,2]
[391277379,1760464248044,-500.0,0.00016438,2]
[391277381,1760464248053,-500.0,0.00016438,2]
[391277383,1760464248063,-500.0,0.00016438,2]
[391277385,1760464248072,-766.37,0.00016438,2]
[391277387,1760464248081,-1021.91,0.00016438,2]
[391277389,1760464248091,-500.0,0.00016438,2]
[391277391,1760464248101,-538.91,0.00016438,2]
[391277393,1760464248110,-500.0,0.00016438,2]
[391277395,1760464248120,-151.0,0.00016438,2]
[391277397,1760464248130,-2237.19,0.00016438,2]
[391277399,1760464248140,-500.0,0.00016438,2]
[391277401,1760464248151,-500.0,0.00016438,2]
[391277404,1760464248160,-2578.54,0.00016438,2]
[391277406,1760464248170,-500.0,0.00016438,2]
[391277408,1760464248180,-151.0,0.00016438,2]
[391277410,1760464248188,-500.0,0.00016438,2]
[391277412,1760464248198,-500.0,0.00016438,2]
[391277414,1760464248206,-500.0,0.00016438,2]
[391277416,1760464248218,-1085.34,0.00016438,2]
[391277417,1760464248227,-500.0,0.00016438,2]
[391277420,1760464248237,-651.52,0.00016438,2]
[391277422,1760464248246,-500.0,0.00016438,2]
[391277424,1760464248255,-1079.07,0.00016438,2]
[391277426,1760464248264,-808.61,0.00016438,2]
[391277428,1760464248273,-1380.24,0.00016438,2]
[391277430,1760464248283,-500.0,0.00016438,2]
[391277432,1760464248292,-1209.82,0.00016438,2]
[391277434,1760464248300,-1068.08,0.00016438,2]
[391277436,1760464248310,-151.0,0.00016438,2]
[391277438,1760464248319,-500.0,0.00016438,2]
[391277440,1760464248328,-500.0,0.00016438,2]
[391277442,1760464248337,-500.0,0.00016438,2]
[391277444,1760464248346,-997.06,0.00016438,2]
[391277446,1760464248355,-562.78,0.00016438,2]
[391277448,1760464248364,-1069.0,0.00016438,2]
[391277450,1760464248373,-500.0,0.00016438,2]
[391277452,1760464248383,-697.6,0.00016438,2]
[391277454,1760464248392,-151.0,0.00016438,2]
[391277456,1760464248401,-1971.62,0.00016438,2]
[391277458,1760464248410,-500.0,0.00016438,2]
[391277460,1760464248419,-3348.2,0.00016438,2]
[391277462,1760464248428,-500.0,0.00016438,2]
[391277464,1760464248438,-500.0,0.00016438,2]
[391277466,1760464248447,-443.51761687,0.00016438,2]
[391277468,1760464248456,-500.0,0.00016438,2]
[391277470,1760464248467,-1982.78,0.00016438,2]
[391277472,1760464248476,-500.0,0.00016438,2]
[391277474,1760464248485,-719.12,0.00016438,2]
[391277476,1760464248493,-151.0,0.00016438,2]
[391277478,1760464248502,-151.0,0.00016438,2]
[391277479,1760464248511,-228.281034,0.00016438,2]
[391277481,1760464248520,-228.281034,0.00016438,2]
[391277482,1760464248529,-228.281034,0.00016438,2]
[391277484,1760464248538,-2876.75,0.00016438,2]
[391277486,1760464248547,-228.281034,0.00016438,2]
[391277487,1760464248556,-500.0,0.00016438,2]
[391277489,1760464248565,-500.0,0.00016438,2]
[391277491,1760464248574,-752.73,0.00016438,2]
[391277492,1760464248582,-794.99,0.00016438,2]
[391277494,1760464248591,-1451.24,0.00016438,2]
[391277496,1760464248601,-228.281034,0.00016438,2]
[391277497,1760464248611,-500.0,0.00016438,2]
[391277499,1760464248619,-228.281034,0.00016438,2]
[391277501,1760464248628,-500.0,0.00016438,2]
[391277502,1760464248637,-559.94,0.00016438,2]
[391277504,1760464248646,-151.0,0.00016438,2]
[391277506,1760464248655,-228.281034,0.00016438,2]
[391277507,1760464248664,-151.0,0.00016438,2]
[391277509,1760464248673,-500.0,0.00016438,2]
[391277511,1760464248681,-228.281034,0.00016438,2]
[391277512,1760464248691,-500.0,0.00016438,2]
[391277514,1760464248700,-749.46,0.00016438,2]
[391277516,1760464248709,-944.8,0.00016438,2]
[391277518,1760464248723,-151.0,0.00016438,2]
[391277519,1760464248732,-151.0,0.00016438,2]
[391277521,1760464248741,-4522.63,0.00016438,2]
[391277523,1760464248750,-151.0,0.00016438,2]
[391277524,1760464248759,-151.0,0.00016438,2]
[391277526,1760464248768,-151.0,0.00016438,2]
[391277528,1760464248782,-563.09128515,0.00016438,2]
[391277530,1760464248791,-859.17,0.00016438,2]
[391277531,1760464248800,-151.0,0.00016438,2]
[391277533,1760464248809,-151.0,0.00016438,2]
[391277535,1760464248819,-1088.13,0.00016438,2]
[391277536,1760464248828,-500.0,0.00016438,2]
[391277538,1760464248838,-151.0,0.00016438,2]
[391277540,1760464248847,-151.0,0.00016438,2]
[391277542,1760464248857,-500.0,0.00016438,2]
[391277543,1760464248866,-1455.68,0.00016438,2]
[391277545,1760464248876,-646.84,0.00016438,2]
[391277547,1760464248885,-1111.27,0.00016438,2]
[391277549,1760464248894,-500.0,0.00016438,2]
[391277551,1760464248903,-500.0,0.00016438,2]
[391277552,1760464248912,-500.0,0.00016438,2]
[391277554,1760464248921,-500.0,0.00016438,2]
[391277556,1760464248931,-6087.0,0.00016438,2]
[391277558,1760464248940,-1088.78,0.00016438,2]
[391277559,1760464248949,-510.63,0.00016438,2]
[391277561,1760464248958,-1903.23,0.00016438,2]
[391277563,1760464248970,-500.0,0.00016438,2]
[391277565,1760464248980,-1696.49,0.00016438,2]
[391277566,1760464248989,-652.66,0.00016438,2]
[391277568,1760464248998,-1576.23,0.00016438,2]
[391277570,1760464249008,-500.0,0.00016438,2]
[391277572,1760464249018,-500.0,0.00016438,2]
[391277574,1760464249027,-500.78995104,0.00016438,2]
[391277575,1760464249036,-516.25,0.00016438,2]
[391277577,1760464249045,-500.0,0.00016438,2]
[391277579,1760464249055,-500.0,0.00016438,2]
[391277581,1760464249064,-151.0,0.00016438,2]
[391277583,1760464249073,-151.0,0.00016438,2]
[391277584,1760464249082,-500.0,0.00016438,2]
[391277586,1760464249092,-1329.18,0.00016438,2]
[391277588,1760464249101,-500.0,0.00016438,2]
[391277590,1760464249110,-500.0,0.00016438,2]
[391277591,1760464249123,-500.0,0.00016438,2]
[391277593,1760464249132,-999.21,0.00016438,2]
[391277595,1760464249142,-4891.18,0.00016438,2]
[391277597,1760464249150,-500.0,0.00016438,2]
[391277599,1760464249160,-790.86,0.00016438,2]
[391277600,1760464249169,-556.19,0.00016438,2]
[391277602,1760464249178,-500.0,0.00016438,2]
[391277604,1760464249187,-500.0,0.00016438,2]
[391277606,1760464249196,-500.0,0.00016438,2]
[391277607,1760464249204,-1038.56,0.00016438,2]
[391277609,1760464249213,-500.0,0.00016438,2]
[391277611,1760464249231,-500.0,0.00016438,2]
[391277613,1760464249240,-500.0,0.00016438,2]
[391277614,1760464249249,-500.0,0.00016438,2]
[391277616,1760464249259,-500.0,0.00016438,2]
[391277618,1760464249268,-771.6,0.00016438,2]
[391277620,1760464249277,-500.0,0.00016438,2]
[391277621,1760464249287,-500.0,0.00016438,2]
[391277623,1760464249296,-500.0,0.00016438,2]
[391277625,1760464249306,-500.0,0.00016438,2]
[391277627,1760464249315,-5270.07,0.00016438,2]
[391277628,1760464249324,-854.39,0.00016438,2]
[391277630,1760464249333,-620.45,0.00016438,2]
[391277632,1760464249342,-500.0,0.00016438,2]
[391277634,1760464249351,-926.83,0.00016438,2]
[391277635,1760464249360,-547.33,0.00016438,2]
[391277637,1760464249369,-500.0,0.00016438,2]
[391277639,1760464249378,-500.0,0.00016438,2]
[391277640,1760464249387,-518.72,0.00016438,2]
[391277642,1760464249396,-500.0,0.00016438,2]
[391277644,1760464249405,-2278.39,0.00016438,2]
[391277646,1760464249415,-151.0,0.00016438,2]
[391277648,1760464249424,-1961.05,0.00016438,2]
[391277650,1760464249433,-151.0,0.00016438,2]
[391277651,1760464249443,-922.83,0.00016438,2]
[391277652,1760464249452,-189.649771,0.00016438,2]
[391277653,1760464249461,-2348.09,0.00016438,2]
[391277654,1760464249475,-761.75,0.00016438,2]
[391277655,1760464249484,-640.65,0.00016438,2]
[391277656,1760464249492,-500.0,0.00016438,2]
[391277657,1760464249502,-151.0,0.00016438,2]
[391277658,1760464249510,-500.0,0.00016438,2]
[391277659,1760464249519,-151.0,0.00016438,2]
[391277660,1760464249528,-2184.1,0.00016438,2]
[391277661,1760464249537,-500.0,0.00016438,2]
[391277662,1760464249546,-151.0,0.00016438,2]
[391277664,1760464249557,-2099.58,0.00016438,2]
[391277665,1760464249567,-2514.59,0.00016438,2]
[391277667,1760464249576,-151.0,0.00016438,2]
[391277669,1760464249585,-500.0,0.00016438,2]
[391277671,1760464249595,-775.61,0.00016438,2]
[391277673,1760464249604,-151.0,0.00016438,2]
[391277675,1760464249613,-1196.19,0.00016438,2]
[391277677,1760464249624,-176.474061,0.00016438,2]
[391277679,1760464249633,-500.0,0.00016438,2]
[391277681,1760464249642,-764.08,0.00016438,2]
[391277683,1760464249653,-2725.65,0.00016438,2]
[391277685,1760464249662,-500.0,0.00016438,2]
[391277688,1760464249671,-681.75,0.00016438,2]
[391277690,1760464249680,-500.0,0.00016438,2]
[391277692,1760464249689,-151.0,0.00016438,2]
[391277694,1760464249699,-500.0,0.00016438,2]
[391277696,1760464249708,-2508.4,0.00016438,2]
[391277698,1760464249721,-151.0,0.00016438,2]